bitfinex/quotes_SOLUSD_20251223
["timestamp","ask_amount","ask_price","bid_price","bid_amount"]
[1766473147993,8.0387347,124.4,124.38,0.2]
[1766473148160,8.7387347,124.4,124.38,0.2]
[1766473148783,12.62075702,124.4,124.38,0.2]
[1766473149294,12.62075702,124.4,124.38,0.9]
[1766473152500,8.7387347,124.4,124.38,0.9]
[1766473152677,8.73803558,124.41,124.38,0.9]
[1766473155985,12.6200579,124.41,124.38,0.9]
[1766473158277,8.73803558,124.41,124.39,0.7]
[1766473159282,11.13767296,124.43,124.4,0.7]
[1766473160298,19.17446959,124.43,124.4,0.7]
[1766473161071,23.05649191,124.43,124.4,0.7]
[1766473161799,4.58202232,124.41,124.38,0.9]
[1766473162001,4.58202232,124.4,124.38,0.2]
[1766473163087,0.7,124.4,124.38,0.2]
[1766473163288,8.73904421,124.4,124.38,0.2]
[1766473164007,0.7,124.39,124.38,0.2]
[1766473164201,4.58202232,124.39,124.38,0.2]
[1766473165106,0.7,124.39,124.38,0.2]
[1766473165404,12.62125376,124.39,124.38,1e-08]
[1766473167493,12.62125376,124.39,124.35,0.2]
[1766473167494,0.7,124.38,124.35,0.2]
[1766473167687,3.88202232,124.37,124.35,0.2]
[1766473168005,4.58202232,124.37,124.35,0.2]
[1766473169587,12.62259877,124.37,124.35,0.2]
[1766473169911,23.06027173,124.37,124.35,0.2]
[1766473170408,8.74000029,124.38,124.35,0.2]
[1766473170612,12.62202261,124.38,124.35,0.9]
[1766473171801,8.74000029,124.38,124.35,0.9]
[1766473172107,12.62202261,124.38,124.35,0.9]
[1766473174207,0.66,124.37,124.35,0.9]
[1766473175404,0.66,124.37,124.34,0.91]
[1766473175719,0.66,124.37,124.34,4.08202232]
[1766473176307,8.70069887,124.37,124.35,0.7]
[1766473176614,8.70066684,124.37,124.35,0.7]
[1766473178491,11.09767296,124.39,124.35,0.7]
[1766473178696,11.09767296,124.39,124.36,0.7]
[1766473178697,19.13713374,124.39,124.36,0.7]
[1766473178909,19.13713374,124.39,124.35,3.88202232]
[1766473178910,4.08202232,124.41,124.39,0.7]
[1766473179105,40.17750951,124.45,124.4,4.58202232]
[1766473179106,0.66,124.44,124.4,4.58202232]
[1766473179413,11.09767296,124.44,124.4,4.58202232]
[1766473180297,8.03666968,124.43,124.4,4.58202232]
[1766473180705,8.69666968,124.43,124.4,4.58202232]
[1766473180997,8.03666968,124.43,124.41,0.7]
[1766473182419,19.13390645,124.44,124.41,0.7]
[1766473185526,23.01592877,124.44,124.41,0.7]
[1766473186122,8.69690548,124.43,124.38,0.7]
[1766473186322,8.69690548,124.43,124.37,32.1803305]
[1766473186323,8.69690548,124.43,124.4,0.7]
[1766473190622,8.03690548,124.43,124.41,0.7]
[1766473194637,19.13382424,124.44,124.41,0.7]
[1766473196537,18.47382424,124.44,124.42,0.7]
[1766473197115,19.13382424,124.44,124.42,0.7]
[1766473200154,18.47382424,124.44,124.42,0.7]
[1766473201343,19.13382424,124.44,124.42,0.7]
[1766473201944,18.47382424,124.44,124.42,0.7]
[1766473203636,19.13382424,124.44,124.4,2.48349153]
[1766473203839,21.61731577,124.44,124.4,2.48349153]
[1766473204238,0.66,124.43,124.4,2.48349153]
[1766473204540,0.66,124.43,124.39,2.48349153]
[1766473204541,0.66,124.42,124.39,2.48349153]
[1766473204753,0.66,124.42,124.36,8.04066796]
[1766473204918,0.66,124.41,124.35,14.68]
[1766473205240,3.14349153,124.41,124.36,2.48349153]
[1766473205447,0.66,124.4,124.36,2.48349153]
[1766473205815,3.14349153,124.4,124.37,0.7]
[1766473206079,3.14349153,124.38,124.35,0.66]
[1766473206435,0.66,124.38,124.35,0.66]
[1766473206625,11.09767296,124.39,124.35,3.14349153]
[1766473206820,18.47693253,124.39,124.36,3.14349153]
[1766473207150,19.13693253,124.39,124.36,0.66]
[1766473207640,0.66,124.38,124.34,3.34349153]
[1766473208144,0.66,124.38,124.35,3.14349153]
[1766473208847,0.66,124.38,124.35,0.66]
[1766473209023,0.66,124.36,124.34,0.2]
[1766473209218,8.04052424,124.37,124.34,0.86]
[1766473209445,8.04052424,124.37,124.34,3.34349153]
[1766473210160,8.70052424,124.37,124.34,0.86]
[1766473211068,2.48349153,124.38,124.35,0.66]
[1766473211069,8.04030468,124.38,124.35,0.66]
[1766473211247,19.13709974,124.39,124.36,3.14349153]
[1766473211635,19.13709974,124.39,124.36,0.66]
[1766473211931,20.96059127,124.39,124.35,2.48349153]
[1766473212135,0.66,124.38,124.34,0.86]
[1766473212441,0.66,124.38,124.35,3.14349153]
[1766473213845,0.66,124.38,124.34,0.2]
[1766473213846,10.52351297,124.38,124.34,0.2]
[1766473214049,0.66,124.36,124.33,0.86]
[1766473214756,0.66,124.36,124.33,3.34349153]
[1766473215257,8.70068595,124.37,124.34,3.14349153]
[1766473215640,8.04009214,124.38,124.35,0.66]
[1766473215957,8.70009214,124.38,124.35,0.66]
[1766473216453,8.70009214,124.38,124.35,3.14349153]
[1766473216662,10.43767296,124.39,124.36,2.48349153]
[1766473216886,8.03798559,124.41,124.38,0.66]
[1766473217172,8.03664711,124.43,124.4,3.14349153]
[1766473217344,0.66,124.43,124.4,0.66]
[1766473217550,0.66,124.43,124.4,3.14349153]
[1766473217753,0.66,124.43,124.4,0.66]
[1766473218061,0.66,124.43,124.4,3.14349153]
[1766473218263,41.04777549,124.44,124.4,2.48349153]
[1766473218264,18.47367424,124.44,124.4,2.48349153]
[1766473218467,8.69549234,124.45,124.42,0.66]
[1766473218642,19.1331653,124.45,124.42,0.66]
[1766473218836,14.68,124.51,124.44,3.14349153]
[1766473218837,8.69341902,124.48,124.44,3.14349153]
[1766473219245,19.13109198,124.48,124.44,3.14349153]
[1766473219466,19.13109198,124.48,124.44,0.66]
[1766473219766,21.61458351,124.48,124.44,3.14349153]
[1766473219940,0.66,124.47,124.44,3.14349153]
[1766473220458,0.66,124.47,124.44,0.66]
[1766473220757,0.66,124.45,124.42,0.66]
[1766473222064,0.66,124.46,124.42,3.14349153]
[1766473222381,10.43767296,124.48,124.44,0.66]
[1766473222536,4.19014811,124.51,124.45,14.68]
[1766473222859,0.66,124.53,124.49,2.48349153]
[1766473223057,2.48349153,124.53,124.45,17.16349153]
[1766473223367,0.66,124.51,124.48,2.48349153]
[1766473223662,3.14349153,124.51,124.46,14.68]
[1766473223862,3.14349153,124.51,124.47,2.48349153]
[1766473224064,3.14349153,124.51,124.46,17.16349153]
[1766473224065,0.66,124.5,124.46,17.16349153]
[1766473224440,0.66,124.5,124.47,2.48349153]
[1766473225839,0.66,124.5,124.44,18.47353443]
[1766473226046,0.66,124.49,124.46,2.48349153]
[1766473226246,0.66,124.49,124.45,2.48349153]
[1766473226452,8.69292684,124.49,124.45,2.48349153]
[1766473226652,0.66,124.48,124.45,2.48349153]
[1766473226868,0.66,124.48,124.42,18.4748106]
[1766473227061,2.48349153,124.46,124.43,14.68]
[1766473227477,3.14349153,124.46,124.43,14.68]
[1766473228047,0.66,124.46,124.43,14.68]
[1766473228285,20.95599228,124.46,124.43,14.68]
[1766473228445,0.66,124.45,124.43,14.68]
[1766473228645,0.66,124.46,124.43,17.16349153]
[1766473229869,0.66,124.46,124.43,14.68]
[1766473232675,0.66,124.46,124.43,17.16349153]
[1766473232872,19.18128931,124.48,124.44,2.48349153]
[1766473233657,19.18128931,124.48,124.43,14.68]
[1766473233658,3.19349153,124.47,124.43,14.68]
[1766473233862,0.71,124.46,124.43,14.68]
[1766473234294,0.71,124.46,124.43,17.16349153]
[1766473235358,0.71,124.47,124.44,2.48349153]
[1766473235568,8.74296255,124.49,124.44,2.48349153]
[1766473235768,11.22645408,124.49,124.44,2.48349153]
[1766473236256,0.71,124.49,124.46,2.48349153]
[1766473236453,0.68,124.48,124.44,2.48349153]
[1766473238278,0.68,124.48,124.44,2.38253757]
[1766473238490,25.11767296,124.51,124.44,2.38253757]
[1766473238491,0.68,124.5,124.44,8.03591709]
[1766473238704,0.68,124.5,124.47,2.38253757]
[1766473238982,8.71102415,124.52,124.48,2.38253757]
[1766473240387,11.09356172,124.52,124.47,17.06253757]
[1766473240583,8.71102415,124.52,124.48,2.38253757]
[1766473241186,0.68,124.52,124.47,22.71387817]
[1766473241383,0.68,124.52,124.48,2.77785246]
[1766473241576,0.68,124.52,124.47,17.45785246]
[1766473241577,0.68,124.51,124.47,17.45785246]
[1766473242166,3.45785246,124.5,124.44,20.87534592]
[1766473242373,0.68,124.49,124.44,14.68]
[1766473242692,0.68,124.49,124.45,2.77785246]
[1766473243183,0.68,124.5,124.46,2.77785246]
[1766473243381,11.11767296,124.51,124.47,2.77785246]
[1766473243561,8.71041158,124.53,124.49,2.77785246]
[1766473243890,0.68,124.52,124.49,2.77785246]
[1766473244460,0.68,124.52,124.47,22.71347752]
[1766473244461,0.68,124.53,124.5,2.77785246]
[1766473245081,0.68,124.53,124.48,8.03295213]
[1766473245286,3.45785246,124.53,124.48,2.77785246]
[1766473245487,0.68,124.52,124.48,2.77785246]
[1766473246171,0.68,124.52,124.49,2.77785246]
[1766473246983,18.56733954,124.54,124.49,2.77785246]
[1766473247184,0.68,124.53,124.49,2.77785246]
[1766473250165,8.71040925,124.53,124.47,22.71390593]
[1766473250370,0.68,124.52,124.48,2.77785246]
[1766473250991,0.68,124.52,124.47,8.03390593]
[1766473251204,0.68,124.51,124.47,25.49175839]
[1766473252179,0.68,124.51,124.47,10.81175839]
[1766473252370,0.68,124.5,124.47,14.68]
[1766473252570,0.68,124.49,124.47,14.68]
[1766473252792,0.68,124.49,124.45,2.77785246]
[1766473254095,0.68,124.49,124.46,2.77785246]
[1766473257469,0.68,124.48,124.44,2.77785246]
[1766473257671,0.68,124.46,124.42,2.77785246]
[1766473257987,0.68,124.46,124.42,14.68]
[1766473258171,28.11490734,124.49,124.42,14.68]
[1766473258172,0.68,124.45,124.42,14.68]
[1766473259284,0.68,124.44,124.4,2.77785246]
[1766473259893,0.68,124.43,124.4,2.77785246]
[1766473260095,0.68,124.43,124.4,4.34633298]
[1766473260297,0.68,124.43,124.39,14.68]
[1766473260499,0.68,124.43,124.4,4.34633298]
[1766473260993,0.68,124.43,124.39,27.06549822]
[1766473262502,0.68,124.41,124.37,4.34633298]
[1766473262989,0.68,124.41,124.36,27.06731892]
[1766473263195,10.43767296,124.46,124.36,14.68]
[1766473263370,0.68,124.43,124.39,4.34633298]
[1766473264194,0.68,124.43,124.36,14.68]
[1766473264389,0.68,124.43,124.39,4.34633298]
[1766473266067,0.68,124.43,124.37,8.04052424]
[1766473266068,0.65,124.41,124.37,8.04052424]
[1766473266266,0.65,124.41,124.37,12.38685722]
[1766473267593,0.65,124.41,124.38,4.34633298]
[1766473268897,0.65,124.41,124.37,4.34633298]
[1766473269998,0.65,124.41,124.36,22.72106715]
[1766473270298,0.65,124.41,124.37,4.34633298]
[1766473270679,8.68813644,124.41,124.37,4.34633298]
[1766473270885,0.65,124.4,124.36,19.02633298]
[1766473271287,0.65,124.4,124.36,4.34633298]
[1766473272603,0.65,124.4,124.36,12.38746748]
[1766473272805,0.65,124.4,124.36,8.0411345]
[1766473272988,0.65,124.4,124.37,4.34633298]
[1766473274300,0.65,124.39,124.36,4.34633298]
[1766473274799,0.65,124.39,124.37,4.34633298]
[1766473275390,0.65,124.39,124.36,4.34633298]
[1766473276104,0.65,124.39,124.37,4.34633298]
[1766473279299,0.65,124.42,124.38,4.34633298]
[1766473279500,0.65,124.43,124.39,4.34633298]
[1766473280400,0.65,124.43,124.4,4.34633298]
[1766473280605,8.68556762,124.45,124.41,4.34633298]
[1766473280793,0.65,124.44,124.41,4.34633298]
[1766473281598,0.65,124.46,124.43,4.34633298]
[1766473282816,0.65,124.46,124.44,4.34633298]
[1766473283019,0.65,124.48,124.44,4.34633298]
[1766473283315,0.65,124.48,124.45,4.34633298]
[1766473283679,0.65,124.5,124.46,4.34633298]
[1766473284191,0.65,124.5,124.47,4.34633298]
[1766473284689,0.65,124.49,124.46,4.34633298]
[1766473285394,0.65,124.48,124.44,4.34633298]
[1766473285824,0.65,124.48,124.43,8.0364698]
[1766473286146,0.65,124.48,124.44,4.34633298]
[1766473286306,0.65,124.48,124.45,4.34633298]
[1766473286513,0.65,124.49,124.45,4.34633298]
[1766473289518,8.03279046,124.49,124.45,4.34633298]
[1766473289818,0.65,124.47,124.43,4.34633298]
[1766473290216,0.65,124.47,124.44,4.34633298]
[1766473293420,0.7,124.46,124.42,14.68]
[1766473293621,0.7,124.46,124.43,4.34633298]
[1766473295810,11.09767296,124.48,124.44,4.34633298]
[1766473296560,0.66,124.47,124.44,4.34633298]
[1766473299169,0.66,124.48,124.45,4.34633298]
[1766473300464,0.66,124.49,124.46,4.34633298]
[1766473300649,0.66,124.49,124.47,4.34633298]
[1766473302165,11.09767296,124.52,124.48,4.34633298]
[1766473302369,11.09767296,124.52,124.45,14.68]
[1766473302370,0.66,124.52,124.49,4.34633298]
[1766473302561,0.66,124.52,124.5,4.34633298]
[1766473302773,8.78976035,124.54,124.5,4.34633298]
[1766473302946,0.66,124.53,124.5,4.34633298]
[1766473304571,0.66,124.52,124.49,4.34633298]
[1766473305570,0.66,124.52,124.48,4.34633298]
[1766473307645,0.66,124.52,124.49,4.34633298]
[1766473308045,0.66,124.52,124.47,22.71396792]
[1766473308248,0.66,124.51,124.48,4.34633298]
[1766473308658,0.66,124.51,124.45,8.03520614]
[1766473308860,0.66,124.51,124.47,4.34633298]
[1766473310175,8.69165767,124.51,124.47,4.34633298]
[1766473310470,0.66,124.5,124.47,4.34633298]
[1766473312256,0.66,124.52,124.48,4.34633298]
[1766473312463,0.66,124.52,124.49,4.34633298]
[1766473312955,11.09767296,124.53,124.5,4.34633298]
[1766473315049,0.1,124.54,124.51,4.34633298]
[1766473315872,10.53767296,124.54,124.51,4.34633298]
[1766473316072,11.19767296,124.54,124.51,4.34633298]
[1766473317050,0.76,124.54,124.52,4.34633298]
[1766473317471,0.76,124.54,124.5,8.03166723]
[1766473317775,0.1,124.54,124.53,4.34633298]
[1766473317979,0.1,124.54,124.52,4.34633298]
[1766473318559,0.1,124.54,124.51,4.34633298]
[1766473318876,0.76,124.54,124.51,4.34633298]
[1766473319191,0.76,124.54,124.49,8.03277371]
[1766473319477,0.76,124.54,124.51,4.34633298]
[1766473319976,0.76,124.54,124.51,2.77674612]
[1766473321079,0.66,124.53,124.49,2.77674612]
[1766473321290,0.66,124.51,124.47,2.77674612]
[1766473323291,0.66,124.5,124.47,2.77674612]
[1766473325388,0.66,124.51,124.48,2.77674612]
[1766473327294,0.66,124.51,124.49,2.77674612]
[1766473327686,0.66,124.52,124.49,2.77674612]
[1766473330677,10.807603,124.52,124.47,2.77674612]
[1766473330905,0.66,124.51,124.47,2.77674612]
[1766473332806,0.66,124.51,124.47,10.81071368]
[1766473335203,0.66,124.48,124.43,8.03648104]
[1766473335398,0.66,124.47,124.43,10.81322716]
[1766473335992,0.66,124.47,124.44,2.77674612]
[1766473339490,0.66,124.47,124.43,2.77674612]
[1766473339993,0.66,124.46,124.42,2.77674612]
[1766473340511,0.66,124.46,124.43,2.77674612]
[1766473342707,0.66,124.46,124.42,10.81357648]
[1766473344111,0.66,124.45,124.41,14.68]
[1766473344311,0.66,124.44,124.41,17.45674612]
[1766473345209,0.66,124.46,124.43,2.77674612]
[1766473347398,0.66,124.46,124.41,22.71778934]
[1766473347711,0.66,124.46,124.43,2.77674612]
[1766473349301,0.66,124.46,124.44,2.77674612]
[1766473351202,18.46996426,124.5,124.45,2.77674612]
[1766473351394,0.66,124.49,124.46,2.77674612]
[1766473351797,0.66,124.49,124.44,22.71594095]
[1766473352118,0.66,124.49,124.45,2.77674612]
[1766473352532,0.66,124.49,124.46,2.77674612]
[1766473357927,0.7,124.48,124.44,17.45674612]
[1766473358225,0.7,124.48,124.45,2.77674612]
[1766473359310,0.7,124.48,124.45,10.81201846]
[1766473359523,0.7,124.48,124.46,2.77674612]
[1766473359714,0.7,124.48,124.45,10.81201846]
[1766473360923,0.7,124.48,124.45,2.77674612]
[1766473362324,0.7,124.48,124.44,14.68]
[1766473362527,0.7,124.48,124.44,17.45674612]
[1766473363104,0.7,124.48,124.45,2.77674612]
[1766473363933,0.7,124.48,124.44,14.68]
[1766473364126,0.7,124.48,124.45,2.77674612]
[1766473367222,0.7,124.48,124.44,22.71566383]
[1766473367435,0.7,124.48,124.44,25.49240995]
[1766473368038,0.7,124.48,124.46,2.77674612]
[1766473368353,0.7,124.49,124.46,2.77674612]
[1766473372140,0.7,124.49,124.45,2.77674612]
[1766473377556,0.7,124.49,124.46,2.77674612]
[1766473379842,0.7,124.49,124.45,8.03495054]
[1766473379843,0.7,124.49,124.47,2.77674612]
[1766473380170,0.7,124.49,124.47,4.34154202]
[1766473384659,0.7,124.49,124.44,22.71576026]
[1766473384968,0.7,124.48,124.44,19.02154202]
[1766473386147,0.7,124.48,124.45,4.34154202]
[1766473388170,0.7,124.48,124.44,19.02154202]
[1766473389867,0.7,124.48,124.44,14.68]
[1766473390085,0.7,124.48,124.44,19.02154202]
[1766473391043,0.7,124.48,124.45,4.34154202]
[1766473391839,0.7,124.48,124.42,10.43767296]
[1766473392045,0.67,124.46,124.43,4.34154202]
[1766473393180,0.67,124.46,124.42,14.68]
[1766473393181,0.67,124.46,124.42,19.02154202]
[1766473393473,0.67,124.46,124.43,4.34154202]
[1766473394169,0.67,124.46,124.44,4.34154202]
[1766473394761,0.67,124.46,124.41,8.03774367]
[1766473395069,0.67,124.46,124.42,4.34154202]
[1766473396883,0.67,124.46,124.41,8.03774367]
[1766473396884,0.67,124.44,124.41,4.34154202]
[1766473397468,0.67,124.44,124.42,4.34154202]
[1766473400382,0.67,124.44,124.4,22.71839514]
[1766473400588,0.67,124.44,124.42,4.34154202]
[1766473400798,0.67,124.48,124.43,4.34154202]
[1766473400986,0.67,124.48,124.45,4.34154202]
[1766473402058,0.67,124.48,124.44,4.34154202]
[1766473402289,0.67,124.48,124.45,4.34154202]
[1766473402868,0.67,124.48,124.43,22.71650729]
[1766473403069,0.67,124.48,124.45,4.34154202]
[1766473403285,0.67,124.49,124.46,4.34154202]
[1766473403883,0.67,124.49,124.47,4.34154202]
[1766473404480,0.67,124.49,124.46,4.34154202]
[1766473408988,0.67,124.49,124.45,4.34154202]
[1766473412481,0.68,124.48,124.45,4.34154202]
[1766473416699,0.67,124.49,124.46,4.34154202]
[1766473419475,0.67,124.49,124.45,8.03507784]
[1766473419677,0.67,124.49,124.46,4.34154202]
[1766473420477,0.67,124.49,124.45,4.34154202]
[1766473422577,0.67,124.49,124.46,4.34154202]
[1766473422978,0.67,124.49,124.45,12.37682518]
[1766473423197,0.67,124.49,124.45,4.34154202]
[1766473424298,0.67,124.49,124.44,22.71576733]
[1766473424477,0.67,124.49,124.45,4.34154202]
[1766473425201,10.43767296,124.5,124.45,8.03523282]
[1766473425377,11.10767296,124.5,124.47,4.34154202]
[1766473425779,0.67,124.49,124.45,8.03523282]
[1766473425986,0.67,124.49,124.46,4.34154202]
[1766473426796,0.67,124.49,124.47,4.34154202]
[1766473427185,0.67,124.49,124.45,8.03523282]
[1766473427186,0.67,124.49,124.46,4.34154202]
[1766473428579,0.67,124.49,124.45,12.37677484]
[1766473428799,0.67,124.49,124.45,19.02154202]
[1766473429796,0.67,124.49,124.45,14.68]
[1766473429998,0.67,124.49,124.45,19.02154202]
[1766473431006,20.1744942,124.54,124.47,4.34154202]
[1766473431187,0.67,124.5,124.49,4.34154202]
[1766473431506,0.67,124.5,124.48,4.34154202]
[1766473433625,10.43767296,124.51,124.49,4.34154202]
[1766473433986,10.43767296,124.51,124.47,0.68]
[1766473434185,10.43767296,124.51,124.48,4.34154202]
[1766473435210,24.51603622,124.54,124.5,4.34154202]
[1766473435211,8.03040974,124.53,124.5,4.34154202]
[1766473435409,8.03040974,124.53,124.49,4.34154202]
[1766473435716,0.67,124.52,124.49,4.34154202]
[1766473436300,0.67,124.52,124.48,5.02154202]
[1766473437306,0.67,124.51,124.49,4.34154202]
[1766473439816,0.67,124.51,124.48,5.02154202]
[1766473440187,0.67,124.51,124.48,4.34154202]
[1766473441514,0.67,124.51,124.47,0.68]
[1766473441515,0.67,124.5,124.47,4.34154202]
[1766473441714,0.67,124.5,124.46,0.68]
[1766473442107,0.67,124.5,124.47,2.77844206]
[1766473444511,0.67,124.5,124.46,0.68]
[1766473444512,0.67,124.49,124.46,0.68]
[1766473444711,0.67,124.49,124.47,2.77844206]
[1766473444912,0.67,124.49,124.46,3.45844206]
[1766473446831,0.67,124.49,124.45,15.36]
[1766473446832,0.72,124.48,124.45,15.36]
[1766473447130,0.72,124.48,124.45,14.68]
[1766473447430,0.72,124.48,124.44,0.68]
[1766473448110,0.72,124.47,124.43,3.45844206]
[1766473449734,0.72,124.46,124.42,18.13844206]
[1766473451023,0.72,124.46,124.43,2.77844206]
[1766473451219,0.72,124.46,124.42,15.36]
[1766473451544,0.72,124.46,124.43,2.77844206]
[1766473452110,0.72,124.46,124.42,18.13844206]
[1766473453332,0.72,124.46,124.42,17.45844206]
[1766473453515,0.72,124.46,124.42,18.13844206]
[1766473454926,0.72,124.46,124.42,15.36]
[1766473455123,0.72,124.46,124.43,2.77844206]
[1766473455935,0.72,124.45,124.42,15.36]
[1766473456140,0.72,124.45,124.42,18.13844206]
[1766473456442,0.72,124.45,124.42,3.45844206]
[1766473458042,0.72,124.47,124.44,0.68]
[1766473458220,0.72,124.47,124.44,3.45844206]
[1766473458939,0.72,124.47,124.44,2.77844206]
[1766473461545,0.72,124.47,124.44,3.45844206]
[1766473464036,0.72,124.47,124.44,0.68]
[1766473464248,0.72,124.47,124.45,2.77844206]
[1766473464419,11.15767296,124.49,124.46,3.45844206]
[1766473464737,0.72,124.49,124.47,2.77844206]
[1766473465048,0.72,124.51,124.48,2.77844206]
[1766473465342,0.72,124.51,124.48,0.68]
[1766473465545,0.72,124.51,124.49,2.77844206]
[1766473466324,8.75030927,124.53,124.5,2.77844206]
[1766473467620,0.72,124.53,124.5,2.77844206]
[1766473467817,0.72,124.53,124.51,2.77844206]
[1766473468921,0.72,124.53,124.5,3.45844206]
[1766473469126,8.1295767,124.54,124.51,0.68]
[1766473469326,8.8495767,124.54,124.51,0.68]
[1766473469527,8.8495767,124.54,124.5,2.77844206]
[1766473469730,0.72,124.53,124.5,3.45844206]
[1766473470524,0.72,124.53,124.51,2.77844206]
[1766473470851,0.72,124.53,124.5,3.45844206]
[1766473473265,0.72,124.53,124.48,0.66]
[1766473473558,0.72,124.53,124.49,3.43844206]
[1766473473754,0.72,124.53,124.49,2.77844206]
[1766473474051,0.72,124.53,124.5,3.43844206]
[1766473474258,0.72,124.53,124.5,0.66]
[1766473474462,0.72,124.53,124.5,3.43844206]
[1766473474949,0.72,124.53,124.5,2.77844206]
[1766473475130,0.69,124.52,124.48,17.45844206]
[1766473475329,0.69,124.52,124.48,18.11844206]
[1766473476460,0.69,124.52,124.49,2.77844206]
[1766473477738,8.74019662,124.53,124.5,2.77844206]
[1766473478128,8.03019662,124.53,124.5,2.77844206]
[1766473478337,0.71,124.52,124.5,2.77844206]
[1766473479366,0.71,124.53,124.5,3.45844206]
[1766473479558,0.71,124.53,124.51,2.77844206]
[1766473480563,0.71,124.53,124.5,3.45844206]
[1766473480735,0.1,124.54,124.52,3.45844206]
[1766473480940,0.1,124.54,124.53,2.77844206]
[1766473481945,0.1,124.55,124.53,2.77844206]
[1766473482151,0.1,124.55,124.53,3.45844206]
[1766473482345,0.1,124.55,124.54,2.77844206]
[1766473482543,0.71,124.56,124.54,2.77844206]
[1766473482860,0.81,124.57,124.54,2.77844206]
[1766473483044,0.81,124.57,124.54,3.45844206]
[1766473483565,0.81,124.57,124.55,2.77844206]
[1766473483742,0.1,124.57,124.55,2.77844206]
[1766473485266,0.1,124.57,124.54,3.45844206]
[1766473486064,0.1,124.57,124.54,2.77844206]
[1766473486065,0.81,124.57,124.54,2.77844206]
[1766473488066,0.81,124.57,124.54,3.45844206]
[1766473490472,0.81,124.57,124.55,2.77844206]
[1766473490669,0.1,124.57,124.55,2.77844206]
[1766473490977,0.81,124.57,124.54,3.45844206]
[1766473491166,0.81,124.57,124.55,2.77844206]
[1766473491560,0.81,124.57,124.54,0.68]
[1766473493061,0.81,124.57,124.54,3.45844206]
[1766473497373,0.81,124.57,124.54,0.68]
[1766473497580,0.81,124.57,124.54,3.45844206]
[1766473499568,0.81,124.57,124.54,0.68]
[1766473499746,10.43767296,124.59,124.56,2.77844206]
[1766473499948,11.14767296,124.59,124.56,3.35844206]
[1766473500375,0.71,124.58,124.55,17.43844206]
[1766473500775,0.71,124.58,124.56,2.77844206]
[1766473500968,11.14767296,124.59,124.56,2.77844206]
[1766473501169,11.14767296,124.59,124.55,18.01844206]
[1766473501762,11.14767296,124.59,124.55,17.43844206]
[1766473501975,11.14767296,124.59,124.56,4.91528268]
[1766473502966,0.71,124.58,124.55,19.57528268]
[1766473505464,0.71,124.58,124.53,8.60993796]
[1766473505669,0.71,124.58,124.53,27.60522064]
[1766473506077,0.71,124.58,124.54,4.91528268]
[1766473507372,0.71,124.57,124.54,4.91528268]
[1766473509389,0.71,124.57,124.53,19.57528268]
[1766473509762,0.71,124.57,124.54,0.58]
[1766473509967,0.71,124.57,124.54,4.91528268]
[1766473514286,0.71,124.57,124.55,4.33528268]
[1766473518395,11.14767296,124.59,124.55,12.36383518]
[1766473518699,0.71,124.6,124.57,4.33528268]
[1766473519500,0.71,124.6,124.57,4.91528268]
[1766473519812,0.71,124.6,124.57,4.33528268]
[1766473521075,0.71,124.6,124.56,4.91528268]
[1766473521886,0.71,124.6,124.57,4.33528268]
[1766473523019,0.81,124.61,124.58,4.91528268]
[1766473523403,0.81,124.61,124.58,4.33528268]
[1766473524008,0.1,124.61,124.59,4.33528268]
[1766473524221,0.1,124.61,124.6,4.33528268]
[1766473526396,0.1,124.62,124.6,4.81528268]
[1766473528899,0.1,124.63,124.61,4.81528268]